bitfinex/quotes_ETHUSD_20240910
["timestamp","ask_amount","ask_price","bid_price","bid_amount"]
[1725931954354,0.79950408,2346.0,2345.4,2.3865]
[1725931954516,3.79950408,2346.0,2345.4,2.3865]
[1725931959241,3.46182659,2346.2,2345.4,2.3865]
[1725931959940,3.46182659,2346.2,2345.6,2.4773]
[1725931967563,3.68269762,2346.1,2345.6,2.4773]
[1725931967767,3.08505166,2346.0,2345.6,2.4773]
[1725931971433,0.08505166,2346.0,2345.6,2.4773]
[1725931971674,0.08505166,2346.1,2345.6,2.4773]
[1725931973377,0.37677493,2346.2,2345.8,2.2989]
[1725931973378,0.08505166,2346.2,2345.8,2.2989]
[1725931974043,3.68269762,2346.1,2345.6,2.2703]
[1725931974368,1.78388781,2346.0,2345.6,2.2703]
[1725931975068,0.08505166,2346.0,2345.6,2.2703]
[1725931975273,1.78388781,2346.1,2345.6,2.2703]
[1725931977853,1.69883615,2345.9,2345.6,2.2703]
[1725931978071,3.08505166,2346.2,2345.6,2.2703]
[1725931978276,1.69883615,2346.3,2345.6,2.2703]
[1725931978441,1.69883615,2346.1,2345.6,2.49733]
[1725931978851,0.08505166,2346.0,2345.6,2.49733]
[1725931979059,0.08505166,2346.0,2345.6,2.2703]
[1725931980193,1.69883615,2345.9,2345.3,2.4941]
[1725931980484,0.08505166,2345.8,2345.3,2.4941]
[1725931980640,0.08505166,2345.8,2345.4,0.45250233]
[1725931980843,0.08505166,2345.8,2345.3,2.4941]
[1725931981038,0.08505166,2345.8,2345.4,0.45249404]
[1725931981253,0.08505166,2345.8,2345.3,2.4941]
[1725931981455,1.69883615,2345.7,2345.3,2.4941]
[1725931981667,0.08505166,2345.6,2345.3,2.4941]
[1725931985074,0.08505166,2345.7,2345.3,2.4941]
[1725931986311,0.08505166,2345.7,2345.3,2.75542433]
[1725931987479,1.69883615,2345.6,2345.2,0.1191433]
[1725931987681,2.2874,2345.3,2345.2,0.1191433]
[1725931987886,2.37245166,2345.3,2345.2,0.1191433]
[1725931988188,5.37245166,2345.3,2345.2,0.1191433]
[1725931989525,3.08505166,2345.3,2345.2,0.1191433]
[1725931989694,2.2961,2345.6,2345.2,0.1191433]
[1725931989695,1.69883615,2345.4,2345.2,0.1191433]
[1725931990090,3.0,2345.4,2345.2,0.1191433]
[1725931990491,0.08505166,2345.5,2345.2,0.1191433]
[1725931990696,0.76175446,2345.5,2345.2,0.1191433]
[1725931991107,4.44373077,2345.5,2345.2,0.1191433]
[1725931991282,3.68197631,2345.3,2345.2,0.1191433]
[1725931991488,6.76702797,2345.3,2345.2,0.1191433]
[1725931994486,0.08505166,2345.3,2345.2,0.1191433]
[1725931994722,0.08505166,2345.4,2345.2,0.1191433]
[1725931995246,3.08505166,2345.4,2345.2,0.1191433]
[1725932000805,0.08505166,2345.3,2345.2,0.1191433]
[1725932001605,3.76702797,2345.3,2345.2,0.1191433]
[1725932002471,6.76702797,2345.3,2345.2,0.1191433]
[1725932002701,7.97169077,2345.3,2345.2,0.1191433]
[1725932004613,3.0,2345.3,2345.2,0.1191433]
[1725932004796,3.08505166,2345.4,2345.2,0.1191433]
[1725932005205,0.08505166,2345.4,2345.2,0.1191433]
[1725932005787,3.68197631,2345.7,2345.2,0.1191433]
[1725932005987,0.08505166,2345.6,2345.3,2.3296]
[1725932006674,3.08505166,2345.6,2345.3,2.3296]
[1725932008284,3.08505166,2345.6,2345.2,2.5673433]
[1725932010514,3.08505166,2345.6,2345.2,2.82407763]
[1725932012222,1.69941576,2345.5,2345.2,2.82407763]
[1725932014680,1.69941576,2345.5,2345.2,2.5673433]
[1725932023944,1.69941576,2345.7,2345.2,2.5673433]
[1725932024851,7.32,2345.9,2345.4,2.4973]
[1725932025019,1.78446742,2346.0,2345.4,2.4973]
[1725932025218,1.78446742,2346.0,2345.4,2.76747143]
[1725932026156,1.69941576,2346.0,2345.4,2.8527356]
[1725932027132,1.69941576,2346.0,2345.4,2.76747143]
[1725932028048,0.08505166,2346.1,2345.5,0.0852633]
[1725932028228,1.69941576,2346.1,2345.6,2.4946]
[1725932028653,1.69941576,2345.9,2345.6,2.4946]
[1725932029018,0.08505166,2345.8,2345.6,2.4946]
[1725932029272,1.69941576,2345.9,2345.3,2.4946]
[1725932029551,1.69941576,2345.9,2345.4,0.26137433]
[1725932029709,1.69941576,2345.9,2345.4,0.3466375]
[1725932030456,1.69941576,2345.9,2345.4,0.26137433]
[1725932031142,3.99991576,2345.9,2345.4,0.26137433]
[1725932032213,3.99991576,2345.9,2345.3,2.4946]
[1725932032214,0.08505166,2345.8,2345.3,2.4946]
[1725932032748,3.99991576,2345.9,2345.3,2.4946]
[1725932034137,1.69941576,2345.9,2345.3,2.4946]
[1725932034328,1.78446742,2345.9,2345.3,2.4946]
[1725932034534,1.78446742,2345.9,2345.4,0.08526326]
[1725932034860,1.78446742,2345.9,2345.4,0.35516392]
[1725932035865,1.69941576,2345.9,2345.4,0.35516392]
[1725932036245,1.69941576,2345.9,2345.5,2.2521]
[1725932036452,3.0,2346.0,2345.6,0.0852567]
[1725932036633,3.0,2346.0,2345.5,2.2521]
[1725932036836,3.0,2346.0,2345.6,0.25220007]
[1725932037019,3.08505166,2346.0,2345.6,0.25220007]
[1725932037466,1.69941576,2345.9,2345.5,2.2521]
[1725932037666,0.08505166,2345.8,2345.2,2.3712433]
[1725932040522,1.78446742,2345.9,2345.2,2.3712433]
[1725932040769,3.08505166,2346.0,2345.4,2.2768]
[1725932040964,3.08505166,2346.0,2345.5,0.08525898]
[1725932040965,3.0,2346.0,2345.5,0.08525898]
[1725932041127,4.08496742,2346.1,2345.5,0.08525898]
[1725932041128,0.08505166,2346.1,2345.5,0.32146488]
[1725932041329,3.08505166,2346.2,2345.6,2.4358]
[1725932041564,3.08505166,2346.2,2345.7,0.0852539]
[1725932041779,3.08505166,2346.2,2345.7,0.08525391]
[1725932041780,3.0,2346.2,2345.7,0.08525391]
[1725932042759,7.32,2346.3,2345.8,2.3175]
[1725932043000,2.3005,2345.9,2345.5,0.2362059]
[1725932043294,0.08505166,2345.8,2345.3,2.3175]
[1725932044090,2.38555166,2345.9,2345.3,2.3175]
[1725932044401,0.08505166,2345.9,2345.3,2.3175]
[1725932044686,3.08505166,2346.2,2345.5,4.05641576]
[1725932044898,3.08505166,2346.2,2345.6,2.357]
[1725932045108,3.0,2346.2,2345.7,0.08525077]
[1725932046200,3.08505166,2346.2,2345.7,0.08525077]
[1725932046382,3.08505166,2346.2,2345.7,0.32947585]
[1725932046775,3.0,2346.2,2345.8,0.08525085]
[1725932046979,3.0,2346.2,2345.7,0.32947434]
[1725932047180,1.78446742,2346.3,2345.8,0.08525077]
[1725932047609,1.69941576,2346.3,2345.9,2.3733]
[1725932048067,3.0,2346.4,2345.9,2.64357758]
[1725932049277,1.78446742,2346.3,2345.5,2.2976]
[1725932049478,2.37785166,2346.2,2345.5,2.2976]
[1725932049676,1.69941576,2346.1,2345.5,2.2976]
[1725932050109,1.69941576,2346.1,2345.6,0.45242915]
[1725932050403,2.37785166,2346.2,2345.5,2.2976]
[1725932050608,1.78446742,2346.3,2345.7,2.4431]
[1725932051165,0.08505166,2346.2,2345.7,2.4431]
[1725932051399,2.38555166,2346.2,2345.7,2.4431]
[1725932053006,2.38555166,2346.2,2345.6,0.47236434]
[1725932053217,2.1079125,2346.1,2345.4,2.3567]
[1725932053367,0.08505166,2346.0,2345.4,2.3567]
[1725932053569,2.3005,2345.8,2345.2,2.4032433]
[1725932053852,0.08505166,2345.7,2345.3,0.45249089]
[1725932053979,2.38555166,2345.8,2345.4,0.45249089]
[1725932054179,2.38555166,2345.8,2345.3,0.28557342]
[1725932054383,2.38555166,2345.8,2345.4,0.45248842]
[1725932054683,2.38555166,2345.8,2345.3,0.28557342]
[1725932054877,0.08505166,2345.8,2345.4,0.45248538]
[1725932055083,0.08505166,2345.8,2345.4,0.31413021]
[1725932055286,1.69941576,2345.5,2345.2,0.1191433]
[1725932055489,0.08505166,2345.4,2345.2,0.1191433]
[1725932058301,0.08505166,2345.6,2345.2,0.1191433]
[1725932066903,0.08505166,2345.6,2345.2,2.6059433]
[1725932069823,0.08505166,2345.6,2345.2,0.1191433]
[1725932070009,0.31925683,2345.6,2345.2,0.1191433]
[1725932071348,0.08505166,2345.6,2345.2,0.1191433]
[1725932087160,0.08505166,2345.6,2345.3,2.4953]
[1725932087972,0.08505166,2345.8,2345.3,2.4953]
[1725932088156,5.3005,2345.9,2345.3,2.4953]
[1725932088157,0.08505166,2345.7,2345.3,2.4953]
[1725932088362,0.08505166,2345.7,2345.4,0.26144433]
[1725932089147,0.08505166,2345.8,2345.4,0.26144433]
[1725932089346,1.78423212,2345.8,2345.4,0.26144433]
[1725932089658,0.08505166,2345.7,2345.4,0.26144433]
[1725932090350,0.08505166,2345.7,2345.3,2.4953]
[1725932098078,3.08505166,2345.7,2345.3,2.4953]
[1725932098405,0.08505166,2345.7,2345.3,2.4953]
[1725932099312,0.08505166,2346.0,2345.3,2.58057205]
[1725932099526,1.78423212,2346.0,2345.5,2.261]
[1725932099684,0.08505166,2346.0,2345.7,2.261]
[1725932100065,0.08505166,2346.1,2345.7,2.261]
[1725932100580,3.68203695,2346.8,2345.6,0.58109505]
[1725932100581,1.69918046,2346.4,2345.8,0.08525389]
[1725932100786,1.69918046,2346.4,2345.9,2.261]
[1725932100787,1.78423212,2346.4,2345.9,2.261]
[1725932101014,1.78423212,2346.4,2346.1,2.3612]
[1725932101716,1.69918046,2346.4,2346.1,2.3612]
[1725932105419,3.0,2346.6,2346.1,2.3612]
[1725932105420,0.08505166,2346.6,2346.1,2.3612]
[1725932105729,1.78423212,2347.1,2346.3,2.3937]
[1725932105912,1.78423212,2347.1,2346.5,2.4728]
[1725932105913,0.08505166,2347.1,2346.5,2.4728]
[1725932106094,10.99248055,2347.9,2346.7,2.4728]
[1725932106095,0.08505166,2347.3,2346.7,2.4728]
[1725932106418,0.08505166,2347.3,2346.7,2.72860188]
[1725932107496,3.08505166,2347.4,2346.7,2.72860188]
[1725932107705,0.08505166,2347.4,2346.8,2.42621462]
[1725932109191,6.67609495,2347.5,2346.8,2.42621462]
[1725932109192,0.08505166,2347.5,2346.8,2.42621462]
[1725932109395,0.08505166,2347.6,2347.0,2.3548]
[1725932109623,0.08505166,2347.6,2347.0,2.44000325]
[1725932110126,0.08505166,2347.6,2347.0,2.3548]
[1725932110687,3.08505166,2347.6,2347.0,2.3548]
[1725932110979,3.08505166,2347.6,2347.1,0.26230016]
[1725932112332,0.08505166,2347.8,2347.2,2.286]
[1725932112496,0.08505166,2347.8,2347.2,2.37120179]
[1725932112688,0.08505166,2347.8,2347.2,2.286]
[1725932113381,7.32,2347.9,2347.4,2.4108]
[1725932113584,0.08505166,2348.0,2347.4,2.4108]
[1725932113822,0.46116632,2348.0,2347.4,2.4108]
[1725932114447,3.67609495,2347.9,2347.4,2.4108]
[1725932114806,0.08505166,2347.8,2347.4,2.4108]
[1725932120077,3.67609495,2347.5,2347.1,2.4554]
[1725932120293,0.08505166,2347.4,2347.1,2.4554]
[1725932120445,0.08505166,2347.6,2347.1,2.4554]
[1725932124548,3.67609495,2347.5,2347.1,2.4554]
[1725932124863,0.08505166,2347.4,2347.1,2.4554]
[1725932129664,0.08505166,2347.4,2346.8,2.77424541]
[1725932129665,3.67609495,2347.3,2346.8,2.77424541]
[1725932129865,3.67609495,2346.9,2346.8,2.322]
[1725932130299,3.67609495,2347.1,2346.8,2.322]
[1725932130556,0.08505166,2347.0,2346.8,2.322]
[1725932131721,3.08505166,2347.2,2346.8,2.322]
[1725932132855,3.0,2347.2,2346.8,2.322]
[1725932133071,3.08505166,2347.4,2347.0,2.2755]
[1725932133388,0.08505166,2347.4,2347.0,2.2755]
[1725932138210,3.08505166,2347.6,2347.0,2.2755]
[1725932150386,1.78157233,2347.5,2347.0,2.2755]
[1725932151279,1.69652067,2347.5,2347.0,2.52627]
[1725932152555,0.08505166,2347.4,2347.0,2.52627]
[1725932153087,1.69652067,2347.5,2347.0,2.52627]
[1725932159195,0.08505166,2347.4,2347.0,2.2755]
[1725932159489,1.69652067,2347.1,2346.8,2.3518]
[1725932159694,0.08505166,2347.0,2346.8,2.3518]
[1725932160159,1.69652067,2346.9,2346.5,7.36]
[1725932160361,0.08505166,2346.8,2346.4,2.2513]
[1725932160596,1.69652067,2346.7,2346.4,2.2513]
[1725932160802,0.08505166,2346.6,2346.4,2.2513]
[1725932161596,1.69652067,2346.7,2346.3,2.2543]
[1725932161801,1.78157233,2347.0,2346.4,0.62854125]
[1725932161967,1.78157233,2347.0,2346.4,2.2543]
[1725932162170,0.08505166,2347.0,2346.4,2.2543]
[1725932162567,3.08505166,2347.0,2346.4,2.2543]
[1725932163267,3.08505166,2347.0,2346.4,2.33952662]
[1725932163474,3.08505166,2347.0,2346.6,2.2568]
[1725932168113,0.08505166,2347.0,2346.6,2.2568]
[1725932169987,0.08505166,2347.1,2346.6,2.2568]
[1725932170987,3.0,2347.3,2346.8,2.3135]
[1725932171192,3.08505166,2347.3,2347.0,2.3135]
[1725932171631,3.08505166,2347.6,2347.0,2.3135]
[1725932171827,3.67688293,2347.5,2347.0,2.3135]
[1725932171988,3.08505166,2347.4,2347.0,2.3135]
[1725932172697,0.08505166,2347.5,2347.0,2.54485]
[1725932173898,0.08505166,2347.6,2347.0,2.54485]
[1725932174467,3.08505166,2347.6,2347.0,2.54485]
[1725932176888,3.08505166,2347.6,2347.2,2.3223]
[1725932177159,3.08505166,2347.7,2347.2,2.3223]
[1725932177439,3.08505166,2347.7,2347.3,0.24075051]
[1725932178395,5.97738293,2348.1,2347.4,2.40749979]
[1725932178693,0.08505166,2348.0,2347.4,2.40749979]
[1725932180258,3.76193459,2348.0,2347.4,2.40749979]
[1725932180457,3.76193459,2348.0,2347.4,2.67232482]
[1725932180961,0.08505166,2348.0,2347.4,2.67232482]
[1725932183503,3.76193459,2348.0,2347.4,2.67232482]
[1725932184069,3.76193459,2348.0,2347.4,2.58712503]
[1725932184410,3.67688293,2347.8,2347.4,2.3223]
[1725932184709,0.08505166,2347.7,2347.4,2.3223]
[1725932185004,0.08505166,2347.9,2347.4,2.3223]
[1725932185214,0.08505166,2347.9,2347.5,0.26482516]
[1725932186422,0.08505166,2347.9,2347.4,2.3223]
[1725932190289,3.76193459,2348.0,2347.4,2.3223]
[1725932190488,3.76193459,2348.0,2347.6,2.4626]
[1725932192125,3.08505166,2348.1,2347.6,2.4626]
[1725932192280,3.08505166,2348.1,2347.8,2.3519]
[1725932196143,1.69578797,2348.0,2347.8,2.3519]
[1725932201718,3.08505166,2348.3,2347.8,2.3519]
[1725932201916,1.69578797,2348.1,2347.8,2.3519]
[1725932202319,0.08505166,2348.4,2347.8,2.3519]
[1725932202622,0.08505166,2348.5,2347.9,2.71208829]
[1725932203437,0.08505166,2348.5,2348.0,0.08516905]
[1725932203632,1.69578797,2348.5,2348.1,2.2906]
[1725932203835,0.08505166,2348.4,2348.1,2.2906]
[1725932204342,1.69578797,2348.5,2348.1,2.2906]
[1725932205332,1.69578797,2348.5,2348.1,2.51966]
[1725932205711,4.69578797,2348.7,2348.1,2.51966]
[1725932205906,0.08505166,2348.6,2348.1,2.51966]
[1725932211633,0.08505166,2348.8,2348.3,2.3854]
[1725932211830,0.08505166,2348.8,2348.5,2.3854]
[1725932212029,3.08505166,2348.8,2348.5,2.3854]
[1725932212229,0.08505166,2348.8,2348.5,2.3854]
[1725932212821,1.69578797,2348.7,2348.5,2.3854]
[1725932213242,1.69578797,2348.7,2348.3,2.3957]
[1725932213746,1.78083963,2348.7,2348.3,2.3957]
[1725932213951,1.78083963,2348.7,2347.0,0.66638094]
[1725932213952,2.4326,2348.3,2347.0,0.66638094]
[1725932214284,4.00462728,2348.6,2346.2,2.22827006]
[1725932214285,1.69578797,2347.1,2346.3,0.89455554]
[1725932214568,1.69578797,2346.8,2345.8,4.51991986]
[1725932214724,0.08505166,2347.0,2345.9,3.75235593]
[1725932215065,1.69578797,2347.1,2346.0,1.0840986]
[1725932215266,1.69578797,2347.1,2346.1,1.78101322]
[1725932215431,1.69578797,2347.1,2346.1,0.08522525]
[1725932215643,1.69578797,2347.1,2346.2,0.55]
[1725932215856,1.69578797,2347.1,2346.3,0.08522093]
[1725932216163,0.08505166,2347.0,2346.3,0.08522093]
[1725932216679,0.08505166,2347.1,2346.3,0.08522093]
[1725932216981,0.08505166,2347.1,2346.2,2.4011]
[1725932217141,0.08505166,2347.1,2346.3,0.33385296]
[1725932221098,3.67733145,2346.8,2346.2,2.4011]
[1725932221268,0.08505166,2346.7,2346.1,7.36]
[1725932222475,0.08505166,2346.8,2346.2,0.08523802]
[1725932222663,6.02803145,2347.0,2346.2,0.08523802]
[1725932222664,0.08505166,2346.9,2346.2,0.08523802]
[1725932222866,0.08505166,2346.9,2346.2,0.82976182]
[1725932223203,0.08505166,2346.9,2346.3,0.08522911]
[1725932223412,0.08505166,2347.1,2346.4,2.3606]
[1725932223702,6.59815095,2347.4,2346.4,2.44583036]
[1725932223703,0.08505166,2347.3,2346.4,2.44583036]
[1725932223860,0.69808997,2347.3,2346.5,0.24458304]
[1725932224060,0.08505166,2347.2,2346.5,0.24458304]
[1725932224780,0.08505166,2347.2,2346.6,0.08521653]
[1725932225089,0.08505166,2347.2,2346.5,0.24458304]
[1725932225294,3.0,2347.3,2346.5,0.3298043]
[1725932225795,3.08505166,2347.5,2346.5,0.3298043]
[1725932226460,3.08505166,2347.5,2346.7,2.4823]
[1725932226662,7.32,2347.6,2346.8,0.08520355]
[1725932226914,0.08505166,2347.8,2346.9,2.4823]
[1725932227115,0.08505166,2347.8,2347.0,0.08520047]
[1725932227330,3.67733145,2348.0,2347.1,2.2564]
[1725932227331,0.08505166,2348.0,2347.1,2.2564]
[1725932227551,0.08505166,2348.3,2347.3,2.2564]
[1725932227839,2.54665166,2348.4,2347.4,3.07327617]
[1725932227996,2.54665166,2348.4,2347.4,2.9881]
[1725932228321,3.67733145,2348.3,2347.4,2.9881]
[1725932228522,3.67733145,2348.3,2347.5,0.29881]
[1725932228734,3.76238311,2348.3,2347.5,0.29881]
[1725932229226,0.08505166,2348.2,2347.5,0.29881]
[1725932229397,0.08505166,2348.2,2347.4,2.4381]
[1725932230791,0.08505166,2348.2,2347.5,0.08518635]
[1725932232131,0.08505166,2348.2,2347.4,2.4381]
[1725932232283,3.08505166,2348.2,2347.4,2.4381]
[1725932232486,3.08505166,2348.2,2347.5,0.08518775]
[1725932232685,3.08505166,2348.2,2347.1,5.0]
[1725932232686,0.1,2347.1,2346.6,1.22794338]
[1725932232930,0.1,2347.1,2345.5,7.36]
[1725932232931,1.31556481,2346.8,2345.5,7.36]
[1725932233091,1.31556481,2346.8,2345.2,0.1191433]
[1725932233092,3.67733145,2345.6,2345.2,0.1191433]
[1725932233287,3.67733145,2345.3,2345.2,0.1191433]
[1725932236155,0.08505166,2345.5,2345.2,0.1191433]
[1725932236472,4.53256914,2345.4,2345.2,0.1191433]
[1725932236628,3.08505166,2345.3,2345.2,0.1191433]
[1725932238424,0.08505166,2345.5,2345.2,0.1191433]
[1725932238759,0.50599127,2345.5,2345.2,0.1191433]
[1725932241370,0.08505166,2345.5,2345.2,0.1191433]
[1725932241866,0.08505166,2346.0,2345.2,0.1191433]
[1725932242219,4.53256914,2345.9,2345.2,0.1191433]
[1725932242456,0.08505166,2345.8,2345.2,0.1191433]
[1725932242822,3.08505166,2345.8,2345.2,0.1191433]
[1725932243172,0.84681374,2345.7,2345.2,0.1191433]
[1725932248168,0.08505166,2345.7,2345.2,0.1191433]
[1725932248474,0.08505166,2345.9,2345.2,0.1191433]
[1725932258387,3.68165368,2345.7,2345.2,0.1191433]
[1725932258554,3.08505166,2345.6,2345.2,0.1191433]
[1725932259685,0.08505166,2345.5,2345.2,0.1191433]
[1725932259882,3.0,2345.8,2345.2,0.1191433]
[1725932259883,0.08505166,2345.7,2345.2,0.1191433]
[1725932260256,0.08505166,2345.7,2345.3,2.4358]
[1725932260587,0.08505166,2346.0,2345.4,0.25549433]
[1725932260881,0.08505166,2346.0,2345.4,0.34075937]
[1725932261086,0.08505166,2346.0,2345.4,0.25549433]
[1725932261446,0.08505166,2346.2,2345.4,0.25549433]
[1725932262291,3.08505166,2346.2,2345.4,0.25549433]
[1725932262449,3.08505166,2346.2,2345.5,2.2786]
[1725932262789,3.08505166,2346.2,2345.5,2.54053593]
[1725932265565,3.08505166,2346.2,2345.6,0.24]
[1725932268775,0.08505166,2346.2,2345.7,2.37905507]
[1725932268961,0.08505166,2346.4,2345.9,2.2938]
[1725932269161,0.08505166,2346.7,2345.9,2.5338]
[1725932269398,0.08505166,2346.7,2346.0,0.08524739]
[1725932269683,0.08505166,2346.7,2345.9,2.5338]
[1725932269890,0.08505166,2346.7,2346.1,2.4756]
[1725932270062,3.68165368,2346.8,2346.1,2.4756]
[1725932270268,0.08505166,2346.7,2346.1,2.4756]
[1725932274688,0.08505166,2346.7,2346.1,2.7156]
[1725932279566,3.08505166,2346.9,2346.1,2.7156]
[1725932279761,1.04050517,2346.8,2346.1,2.7156]
[1725932279966,0.08505166,2346.7,2346.1,2.7156]
[1725932282511,0.08505166,2346.7,2346.1,2.80084098]
[1725932283024,3.0,2346.9,2345.7,0.66702042]
[1725932283025,2.4738,2346.1,2345.7,0.66702042]
[1725932283227,2.4738,2345.7,2345.2,0.1191433]
[1725932283453,3.68165368,2345.3,2345.2,0.1191433]
[1725932283833,7.80381539,2345.3,2345.2,0.1191433]
[1725932284703,6.78827738,2345.3,2345.2,0.1191433]
[1725932285532,1.87803927,2345.6,2345.2,0.1191433]
[1725932285701,0.7630017,2345.6,2345.2,0.1191433]
[1725932285907,0.10662369,2345.6,2345.2,0.1191433]
[1725932286703,3.98371074,2346.0,2345.2,0.1191433]
[1725932286704,0.10660386,2345.9,2345.2,0.1191433]
[1725932289396,0.10660386,2345.9,2345.3,2.2618]
[1725932289993,0.10658206,2346.3,2345.3,2.2618]
[1725932290351,0.10658206,2346.3,2345.3,2.34706566]
[1725932290551,0.10658206,2346.3,2345.4,0.9826209]
[1725932291311,1.87799764,2346.3,2345.4,0.9826209]
[1725932291513,0.10657978,2346.2,2345.5,2.46116382]
[1725932292102,0.10657978,2346.2,2345.5,2.3759]
[1725932296206,0.10657469,2346.3,2345.6,2.55935975]
[1725932296407,0.10657469,2346.3,2345.7,0.25593597]
[1725932297222,0.10656161,2346.4,2345.8,2.3287]
[1725932297723,0.10656161,2346.5,2346.0,2.3287]
[1725932297927,1.77141558,2346.8,2346.0,2.3287]
[1725932297928,0.10655517,2346.7,2346.0,2.3287]
[1725932298111,0.10655517,2346.7,2346.1,0.24139493]
[1725932298619,0.10655517,2346.7,2346.1,0.32663782]
[1725932298833,0.10654479,2346.8,2346.2,2.493]
[1725932298990,0.10654481,2346.9,2346.3,0.08523585]
[1725932299397,0.10653729,2347.2,2346.4,2.493]
[1725932299594,0.10653729,2347.2,2346.5,2.57821981]
[1725932299794,0.10653729,2347.2,2346.6,0.08521977]
[1725932300015,0.10653729,2347.2,2346.6,0.25782198]
[1725932300432,0.10653729,2347.2,2346.6,0.34304324]
[1725932300733,0.10652449,2347.4,2346.6,0.34304324]
[1725932301079,0.10652449,2347.4,2346.6,0.25782198]
[1725932301443,0.10652449,2347.4,2346.7,2.52041791]
[1725932301738,0.1065175,2347.5,2346.8,0.36303799]
[1725932302299,0.1065175,2347.5,2346.8,0.27782399]
[1725932302630,0.1065175,2347.5,2346.8,0.36303794]
[1725932303642,0.1065175,2347.5,2346.8,0.27782399]
[1725932303784,0.1065175,2347.5,2346.8,0.36303793]
[1725932304808,0.10651399,2347.7,2346.8,0.27782399]
[1725932305125,1.31882872,2347.7,2346.8,0.36303792]
[1725932305286,4.31882872,2347.7,2346.8,0.27782399]
[1725932305825,6.0902443,2347.7,2346.8,0.27782399]
[1725932306030,6.0902443,2347.7,2346.7,2.4352]
[1725932306188,6.0902443,2347.7,2346.4,7.36]
[1725932306189,1.77141558,2347.5,2346.4,9.7723]
[1725932306532,0.10653739,2347.4,2346.4,9.7723]
[1725932306682,1.87795297,2347.4,2346.4,9.7723]
[1725932306887,0.75926329,2347.3,2346.4,9.7723]
[1725932307111,0.10653731,2347.2,2346.4,9.7723]
[1725932307600,0.10653731,2347.2,2346.4,2.4123]
[1725932308303,0.10652911,2347.4,2346.4,2.4123]
[1725932310209,3.78329582,2347.4,2346.4,2.4123]
[1725932310398,3.67832958,2347.3,2346.5,0.24123]
[1725932310601,0.10652326,2347.2,2346.5,0.24123]
[1725932311206,3.67676671,2346.7,2345.6,2.2743]
[1725932311410,0.10657055,2346.6,2345.6,2.2743]
[1725932311715,3.10657055,2346.6,2345.6,2.2743]
[1725932312732,3.10657055,2346.6,2345.2,3.79591001]
[1725932312733,3.67676671,2345.7,2345.2,0.1191433]
[1725932312917,3.47428259,2345.6,2345.2,0.1191433]
[1725932314551,3.0,2345.5,2345.2,0.1191433]
[1725932314859,0.10660591,2345.4,2345.2,0.1191433]
[1725932315637,0.10660583,2345.5,2345.2,0.1191433]
[1725932333469,0.10660169,2345.6,2345.3,2.2955]
[1725932333658,0.10658786,2346.0,2345.4,0.24146433]
[1725932333987,0.10658786,2346.0,2345.3,2.2955]
[1725932339103,0.10657697,2346.2,2345.5,3.68076364]
[1725932339305,3.7873315,2346.6,2345.6,2.2959]
[1725932339577,3.68076364,2346.4,2345.6,2.2959]
[1725932339821,0.1065679,2346.3,2345.6,2.2959]
[1725932340904,3.1065679,2346.3,2345.6,2.2959]
[1725932341117,0.1065679,2346.2,2345.6,2.2959]
[1725932341399,3.78733154,2346.2,2345.6,2.2959]
[1725932341976,0.1065679,2346.2,2345.6,2.52549]
[1725932342580,3.78733154,2346.2,2345.6,2.52549]
[1725932346836,3.78733154,2346.2,2345.6,2.2959]
[1725932347156,3.68076364,2346.0,2345.6,2.2959]
[1725932347447,3.68076364,2345.8,2345.3,2.4762]
[1725932347602,0.10658575,2345.7,2345.3,2.4762]
[1725932348431,3.1065857,2345.9,2345.3,2.4762]
[1725932348616,3.78532063,2345.9,2345.3,2.4762]
[1725932351312,0.10658572,2345.8,2345.3,2.4762]
[1725932351516,0.10658572,2346.1,2345.3,2.4762]
[1725932353322,0.10657078,2346.2,2345.4,2.4416]
[1725932354213,0.10656873,2346.4,2345.6,2.2893]
[1725932355521,0.10656873,2346.4,2345.7,0.08525431]
[1725932355729,0.10656873,2346.4,2345.8,2.2893]
[1725932356253,1.87798431,2346.4,2345.8,2.2893]
[1725932356568,0.10656873,2346.4,2345.8,2.2893]
[1725932359539,0.10655571,2346.5,2345.8,2.2893]
[1725932360567,1.87797127,2346.6,2345.8,2.2893]
[1725932360771,3.10655569,2346.6,2345.9,0.25267554]
[1725932360945,4.87797127,2346.6,2345.9,0.25267554]
[1725932361147,3.10655569,2346.6,2345.9,0.25267554]
[1725932361340,0.10655569,2346.6,2345.9,0.25267554]
[1725932361545,0.10655569,2346.6,2346.0,2.4616]
[1725932361835,0.10655569,2346.6,2346.1,0.27142755]
[1725932363038,19.86,2345.9,2345.2,0.1191433]
[1725932363390,3.68076364,2345.4,2345.2,0.1191433]
[1725932363591,2.88577283,2345.3,2345.2,0.1191433]
[1725932363738,5.88577283,2345.3,2345.2,0.1191433]
[1725932363939,7.24152265,2345.3,2345.2,0.1191433]
[1725932364139,8.57085515,2345.3,2345.2,0.1191433]
[1725932364391,7.24152265,2345.3,2345.2,0.1191433]
[1725932364907,4.4623677,2345.3,2345.2,0.1191433]
[1725932365089,5.79153667,2345.3,2345.2,0.1191433]
[1725932365577,5.79133688,2345.3,2345.2,0.1191433]
[1725932365784,5.79133792,2345.3,2345.2,0.1191433]
[1725932365943,4.4623677,2345.3,2345.2,0.1191433]
[1725932366163,6.23533523,2345.3,2345.2,0.1191433]
[1725932374202,9.12413523,2345.3,2345.2,0.1191433]
[1725932374411,9.56916187,2345.3,2345.2,0.1191433]
[1725932375411,9.56253735,2345.3,2345.2,0.1191433]
[1725932378170,9.11976688,2345.3,2345.2,0.1191433]
[1725932380194,12.80053052,2345.3,2345.2,0.1191433]
[1725932380979,11.03193134,2345.3,2345.2,0.1191433]
[1725932381180,12.80053052,2345.3,2345.2,0.1191433]
[1725932381903,11.03193134,2345.3,2345.2,0.1191433]
[1725932384522,10.48193134,2345.3,2345.2,0.1191433]
[1725932385631,8.14313134,2345.3,2345.2,0.1191433]
[1725932390940,8.03651346,2345.3,2345.2,0.1191433]
[1725932391238,8.1431399,2345.3,2345.2,0.1191433]
[1725932391997,8.03651346,2345.3,2345.2,0.1191433]
[1725932392209,8.14313653,2345.3,2345.2,0.1191433]
[1725932401614,9.90982055,2345.3,2345.2,0.1191433]
[1725932404247,10.45982055,2345.3,2345.2,0.1191433]
[1725932405433,10.90562912,2345.3,2345.2,0.1191433]
[1725932406233,8.92525958,2345.3,2345.2,0.1191433]
[1725932406845,6.71276699,2345.3,2345.2,0.1191433]
[1725932407483,9.3677581,2345.3,2345.2,0.1191433]
[1725932407681,8.8177581,2345.3,2345.2,0.1191433]
[1725932408174,6.16276699,2345.3,2345.2,0.1191433]
[1725932408679,6.60666062,2345.3,2345.2,0.1191433]